bitfinex/quotes_BTCUSD_20240717
["timestamp","ask_amount","ask_price","bid_price","bid_amount"]
[1721179353839,0.65573474,66027.0,66026.0,0.009218]
[1721179353995,0.64373474,66027.0,66026.0,0.009218]
[1721179354625,0.62973474,66027.0,66026.0,0.009218]
[1721179354858,0.94464074,66027.0,66026.0,0.009218]
[1721179355103,1.30654674,66027.0,66026.0,0.009218]
[1721179355756,1.25654674,66027.0,66026.0,0.009218]
[1721179355978,1.29454674,66027.0,66026.0,0.009218]
[1721179356188,1.30854674,66027.0,66026.0,0.009218]
[1721179356611,1.60245274,66027.0,66026.0,0.009218]
[1721179356843,1.58845274,66027.0,66026.0,0.009218]
[1721179357048,1.00864074,66027.0,66026.0,0.009218]
[1721179357254,0.69173474,66027.0,66026.0,0.009218]
[1721179357457,0.49028174,66027.0,66026.0,0.009218]
[1721179357630,0.94164074,66027.0,66026.0,0.009218]
[1721179357839,0.94464074,66027.0,66026.0,0.009218]
[1721179357972,1.00764074,66027.0,66026.0,0.009218]
[1721179358386,1.29754674,66027.0,66026.0,0.009218]
[1721179359025,1.60045274,66027.0,66026.0,0.009218]
[1721179359220,1.58845274,66027.0,66026.0,0.009218]
[1721179359446,1.60045274,66027.0,66026.0,0.009218]
[1721179359645,1.60945274,66027.0,66026.0,0.009218]
[1721179360022,1.58845274,66027.0,66026.0,0.009218]
[1721179360232,1.60245274,66027.0,66026.0,0.009218]
[1721179360429,1.61545274,66027.0,66026.0,0.009218]
[1721179360849,1.58845274,66027.0,66026.0,0.009218]
[1721179361063,1.30654674,66027.0,66026.0,0.009218]
[1721179361272,1.60945274,66027.0,66026.0,0.009218]
[1721179361471,1.60045274,66027.0,66026.0,0.009218]
[1721179362408,1.58845274,66027.0,66026.0,4.9e-07]
[1721179363140,1.60245274,66027.0,66026.0,4.9e-07]
[1721179363559,1.61545274,66027.0,66026.0,4.9e-07]
[1721179363746,1.58845274,66027.0,66026.0,4.9e-07]
[1721179363952,1.60145274,66027.0,66026.0,4.9e-07]
[1721179364179,2.16770831,66027.0,66026.0,4.9e-07]
[1721179364293,2.16770831,66027.0,66020.0,0.009207]
[1721179364294,1.269765,66021.0,66020.0,0.009207]
[1721179364497,1.44714674,66021.0,66020.0,0.009207]
[1721179365834,0.966937,66012.0,66011.0,0.000924]
[1721179366033,1.50411874,66012.0,66011.0,0.000924]
[1721179366241,1.86129374,66012.0,66011.0,0.000924]
[1721179366629,2.16426874,66012.0,66011.0,0.000924]
[1721179366829,1.269975,66008.0,66007.0,0.005142]
[1721179367081,1.44735674,66008.0,66007.0,0.005142]
[1721179367288,1.39735674,66008.0,66007.0,0.005142]
[1721179367502,1.44735674,66008.0,66007.0,0.005142]
[1721179368234,1.39735674,66008.0,66007.0,0.005142]
[1721179368404,1.45835674,66008.0,66007.0,0.005142]
[1721179369389,1.45835674,66008.0,65992.0,0.001286]
[1721179369390,0.757655,65993.0,65992.0,0.001286]
[1721179369589,1.34243674,65993.0,65992.0,0.001286]
[1721179369992,1.36543674,65993.0,65992.0,0.001286]
[1721179370155,1.41543674,65993.0,65992.0,0.001286]
[1721179370358,1.36543674,65993.0,65992.0,0.001286]
[1721179370769,1.38443674,65993.0,65992.0,0.001286]
[1721179371332,1.73749874,65993.0,65992.0,0.001286]
[1721179371542,1.43443674,65993.0,65992.0,0.001286]
[1721179371759,1.37643674,65993.0,65992.0,0.001286]
[1721179372041,1.53643674,65993.0,65992.0,0.001286]
[1721179372240,1.82849874,65993.0,65992.0,0.001286]
[1721179372511,1.82849874,65993.0,65979.0,0.009196]
[1721179372512,0.301,65988.0,65979.0,0.009196]
[1721179372730,0.917305,65980.0,65979.0,0.009196]
[1721179373176,0.023,65980.0,65969.0,0.07717479]
[1721179373425,0.00277097,65979.0,65970.0,0.1258704]
[1721179373657,0.00277097,65979.0,65965.0,0.060614]
[1721179373658,0.303135,65978.0,65971.0,0.1258704]
[1721179373888,0.023,65977.0,65972.0,0.1258704]
[1721179374110,0.023,65977.0,65973.0,0.1258704]
[1721179374111,0.15715271,65976.0,65973.0,0.1258704]
[1721179374333,0.15715271,65976.0,65974.0,0.1258704]
[1721179374555,0.15715271,65976.0,65975.0,0.1258704]
[1721179374769,0.15438174,65976.0,65975.0,0.1258704]
[1721179375452,0.48052174,65976.0,65965.0,0.060614]
[1721179375668,0.4304,65975.0,65966.0,0.12587379]
[1721179375910,0.17738174,65974.0,65967.0,0.12587379]
[1721179376108,0.15438174,65974.0,65968.0,0.12587379]
[1721179376323,0.00277097,65973.0,65969.0,0.12587379]
[1721179376475,0.15438174,65972.0,65970.0,0.12587608]
[1721179376677,0.17735297,65971.0,65965.0,0.060614]
[1721179376879,0.15438174,65970.0,65966.0,0.1258765]
[1721179377080,0.02577097,65969.0,65967.0,0.1258765]
[1721179377281,0.12861077,65968.0,65967.0,0.0043992]
[1721179377485,0.12861077,65968.0,65967.0,0.12587622]
[1721179377804,0.12861077,65968.0,65967.0,0.13027542]
[1721179378307,0.15438174,65968.0,65967.0,0.13027542]
[1721179378453,0.15438174,65968.0,65967.0,0.13227542]
[1721179379633,0.15738174,65968.0,65967.0,0.13227542]
[1721179379840,0.15738174,65968.0,65967.0,0.13027542]
[1721179379981,0.1595,65980.0,65967.0,0.13027542]
[1721179380198,0.1595,65980.0,65967.0,0.0043992]
[1721179380199,0.001,65968.0,65967.0,0.0043992]
[1721179380406,0.004,65968.0,65967.0,0.12587367]
[1721179380618,0.004,65968.0,65967.0,0.13130683]
[1721179381019,0.003,65968.0,65967.0,0.13030683]
[1721179381804,0.00277097,65977.0,65967.0,0.13030683]
[1721179382005,0.15438174,65976.0,65968.0,0.1258751]
[1721179382214,0.15438174,65976.0,65969.0,0.1258751]
[1721179382412,0.15438174,65976.0,65970.0,0.1258751]
[1721179382695,0.15438174,65976.0,65971.0,0.1258751]
[1721179382894,0.15438174,65976.0,65970.0,0.00446568]
[1721179383046,0.00277097,65975.0,65967.0,0.001]
[1721179383256,0.15438174,65974.0,65971.0,0.00446196]
[1721179383459,0.15438174,65974.0,65965.0,0.060614]
[1721179383663,0.15438174,65974.0,65966.0,0.12587483]
[1721179383664,0.303159,65972.0,65966.0,0.12587483]
[1721179383980,0.303159,65972.0,65967.0,0.12587483]
[1721179383981,0.18015271,65971.0,65967.0,0.12587483]
[1721179384157,0.18015271,65971.0,65962.0,0.1]
[1721179384358,0.18015271,65971.0,65963.0,0.12588298]
[1721179384563,0.18015271,65971.0,65964.0,0.12588298]
[1721179384785,0.18015271,65971.0,65965.0,0.12588298]
[1721179384986,0.18015271,65971.0,65966.0,0.12588169]
[1721179385225,0.18015271,65971.0,65967.0,0.12588169]
[1721179385405,0.18015271,65971.0,65960.0,0.1]
[1721179385609,0.18015271,65971.0,65962.0,0.12588333]
[1721179385933,0.007,65972.0,65966.0,0.07717479]
[1721179386128,0.007,65972.0,65968.0,0.0828]
[1721179386568,0.009,65971.0,65968.0,0.0828]
[1721179386946,0.009,65971.0,65968.0,0.1828]
[1721179387170,0.2168,65987.0,65968.0,0.1828]
[1721179387370,0.00277097,65985.0,65975.0,0.07717479]
[1721179387628,0.00277097,65993.0,65982.0,0.07717479]
[1721179387785,0.00084,66008.0,65996.0,0.0083]
[1721179387985,0.00084,66008.0,66007.0,0.07717479]
[1721179388361,0.00084,66008.0,66007.0,0.23697379]
[1721179388562,0.00084,66008.0,66007.0,0.63997179]
[1721179388769,0.00084,66008.0,66007.0,0.40017379]
[1721179389150,0.00084,66008.0,66007.0,0.24867479]
[1721179389350,0.00084,66008.0,66007.0,0.40017379]
[1721179389571,0.00084,66008.0,66007.0,1.16055153]
[1721179389790,0.04502865,66038.0,66020.0,0.1023]
[1721179389998,0.04502865,66038.0,66023.0,0.07717479]
[1721179389999,0.15438174,66037.0,66023.0,0.07717479]
[1721179390417,0.15438174,66037.0,66021.0,0.904]
[1721179390620,0.15438174,66037.0,66023.0,0.04911989]
[1721179391330,0.15438174,66037.0,66024.0,0.00453163]
[1721179391535,0.16338174,66037.0,66024.0,0.00453163]
[1721179391737,0.151457,66025.0,66024.0,0.00453163]
[1721179391932,1.34166874,66025.0,66024.0,0.00453163]
[1721179392137,0.73583874,66025.0,66024.0,0.00453163]
[1721179392293,0.73583874,66025.0,66004.0,0.062]
[1721179392294,0.58438174,66025.0,66005.0,0.00277097]
[1721179392493,0.151465,66022.0,66012.0,0.46304871]
[1721179392693,0.151465,66022.0,66004.0,0.11130003]
[1721179392694,0.151484,66014.0,66006.0,0.00497837]
[1721179392918,0.17738174,66021.0,66007.0,0.00277097]
[1721179392919,0.17738174,66013.0,66007.0,0.00277097]
[1721179393123,0.17738174,66013.0,66007.0,0.00497674]
[1721179393316,0.15438174,66013.0,66008.0,0.00277097]
[1721179393686,0.15438174,66013.0,66005.0,0.07994576]
[1721179393890,0.15438174,66012.0,66005.0,0.00277097]
[1721179394087,0.1595,66024.0,66006.0,0.00497837]
[1721179394394,0.15438174,66011.0,66007.0,0.00277097]
[1721179394594,0.15438174,66011.0,66008.0,0.00497511]
[1721179395296,0.007,66012.0,66005.0,0.07717479]
[1721179395511,0.007,66012.0,66009.0,0.00497347]
[1721179395684,0.007,66012.0,66010.0,0.145]
[1721179395913,0.007,66012.0,66010.0,0.14997184]
[1721179396291,0.01,66012.0,66010.0,0.14997184]
[1721179396503,0.007,66012.0,66010.0,0.14997184]
[1721179396639,0.4758,66024.0,66010.0,0.14997184]
[1721179396969,0.004,66011.0,66010.0,0.14997184]
[1721179397174,0.004,66011.0,66010.0,0.00497184]
[1721179397351,0.001,66012.0,66010.0,0.00497184]
[1721179397551,0.15438174,66023.0,66007.0,0.00277097]
[1721179397756,0.001,66012.0,66011.0,0.0049702]
[1721179398171,0.15438174,66023.0,66007.0,0.00277097]
[1721179398397,0.4788,66024.0,66019.0,0.07717479]
[1721179398797,0.4788,66024.0,66020.0,0.0049555]
[1721179399210,0.4788,66024.0,66020.0,0.0835555]
[1721179399211,0.4758,66024.0,66020.0,0.0835555]
[1721179399612,0.4758,66024.0,66021.0,0.0642]
[1721179399958,0.4758,66038.0,66022.0,0.00495223]
[1721179400119,0.00837,66042.0,66022.0,0.00495223]
[1721179400120,0.15438174,66037.0,66026.0,0.07717479]
[1721179400504,0.15438174,66037.0,66027.0,0.00494406]
[1721179403170,0.15438174,66037.0,66027.0,0.00694406]
[1721179403373,0.15538174,66037.0,66027.0,0.00694406]
[1721179403895,0.15438174,66037.0,66028.0,0.07717479]
[1721179404210,0.15738174,66037.0,66028.0,0.07717479]
[1721179404416,0.15738174,66037.0,66029.0,0.0049408]
[1721179404546,0.15438174,66037.0,66029.0,0.0049408]
[1721179404950,0.15538174,66037.0,66023.0,0.0497001]
[1721179405151,0.15538174,66037.0,66026.0,0.07717479]
[1721179405414,0.001,66037.0,66035.0,0.07717479]
[1721179405620,0.001,66037.0,66036.0,0.00492936]
[1721179406276,0.00837,66042.0,66036.0,0.14252936]
[1721179406474,0.00837,66042.0,66037.0,0.251429]
[1721179406681,0.00837,66042.0,66037.0,0.402858]
[1721179406894,0.00837,66042.0,66041.0,0.151421]
[1721179407093,0.00837,66042.0,66041.0,0.554263]
[1721179407297,0.00837,66042.0,66041.0,0.10490962]
[1721179407498,0.00837,66042.0,66041.0,0.77465436]
[1721179407745,0.063,66066.0,66047.0,0.2]
[1721179407948,0.15438174,66065.0,66048.0,0.1]
[1721179408118,0.15438174,66065.0,66048.0,0.10489819]
[1721179408486,0.15438174,66065.0,66048.0,0.15408169]
[1721179409410,0.151376,66061.0,66048.0,0.15408169]
[1721179409652,0.15438174,66060.0,66048.0,0.0491835]
[1721179409856,0.15438174,66060.0,66048.0,0.0501835]
[1721179410058,0.15438174,66060.0,66049.0,0.00489656]
[1721179410418,0.15438174,66060.0,66048.0,0.0491835]
[1721179410632,0.15438174,66060.0,66049.0,0.00489656]
[1721179410839,0.15438174,66060.0,66048.0,0.0491835]
[1721179411040,0.005,66061.0,66049.0,0.0775]
[1721179411260,0.15438174,66060.0,66049.0,0.18239656]
[1721179411695,0.4758,66067.0,66049.0,0.18239656]
[1721179411898,0.15438174,66066.0,66049.0,0.18239656]
[1721179412256,0.2259,66063.0,66049.0,0.00489656]
[1721179412456,0.2259,66063.0,66048.0,0.0521835]
[1721179412457,0.151394,66053.0,66048.0,0.0521835]
[1721179412641,0.15438174,66052.0,66042.0,0.1]
[1721179412797,0.023,66051.0,66042.0,0.1]
[1721179413002,0.1595,66062.0,66043.0,0.07717479]
[1721179413335,0.0664,66063.0,66044.0,0.12571054]
[1721179413336,0.17738174,66061.0,66044.0,0.12571054]
[1721179413544,0.17738174,66061.0,66045.0,0.12571054]
[1721179413746,0.17738174,66061.0,66046.0,0.12571054]
[1721179413944,0.17738174,66061.0,66047.0,0.12571054]
[1721179414141,0.17738174,66061.0,66043.0,0.07717479]
[1721179414343,0.17738174,66061.0,66044.0,0.12570805]
[1721179414344,0.003,66053.0,66044.0,0.12570805]
[1721179414546,0.003,66053.0,66043.0,0.17817479]
[1721179414547,0.003,66053.0,66047.0,0.04962987]
[1721179414763,0.003,66053.0,66048.0,0.12570805]
[1721179414958,0.003,66053.0,66049.0,0.12570805]
[1721179415134,0.003,66053.0,66050.0,0.12570805]
[1721179415331,0.003,66053.0,66051.0,0.12570805]
[1721179415549,0.32875774,66061.0,66045.0,0.1]
[1721179415550,0.023,66052.0,66045.0,0.1]
[1721179415755,0.023,66052.0,66046.0,0.12571547]
[1721179415967,0.023,66052.0,66047.0,0.12571547]
[1721179416258,0.023,66052.0,66049.0,0.07717479]
[1721179416472,0.023,66052.0,66050.0,0.13271547]
[1721179416839,0.023,66052.0,66051.0,0.12571547]
[1721179417039,0.024,66052.0,66051.0,0.12571547]
[1721179417254,0.001,66052.0,66051.0,0.12571547]
[1721179417385,0.001,66052.0,66051.0,0.47101547]
[1721179417589,0.001,66052.0,66051.0,3.54875801]
[1721179417786,0.001,66052.0,66051.0,3.85155401]
[1721179418059,0.4758,66074.0,66064.0,0.151367]
[1721179418252,0.00837,66079.0,66063.0,0.804]
[1721179418464,0.00837,66079.0,66064.0,0.12567363]
[1721179418664,0.00837,66079.0,66070.0,0.2]
[1721179418837,0.00837,66079.0,66071.0,0.22567363]
[1721179419038,0.00837,66079.0,66072.0,0.12567363]
[1721179419241,0.00837,66079.0,66073.0,0.22567363]
[1721179419442,0.00837,66079.0,66074.0,0.12567363]
[1721179419840,0.00837,66079.0,66074.0,0.22567363]
[1721179420046,0.01039,66075.0,66074.0,0.22567363]
[1721179420411,0.00839,66075.0,66074.0,0.22567363]
[1721179420613,0.00939,66075.0,66074.0,0.23467363]
[1721179420828,0.00939,66075.0,66074.0,0.23767363]
[1721179420829,0.01039,66075.0,66074.0,0.23767363]
[1721179421252,0.01039,66075.0,66074.0,0.23765626]
[1721179421872,0.00939,66075.0,66074.0,0.22865626]
[1721179422324,0.01039,66075.0,66074.0,0.23965626]
[1721179422712,1e-08,66075.0,66074.0,0.23965626]
[1721179423008,0.00837,66079.0,66074.0,0.23965626]
[1721179423009,0.023,66078.0,66074.0,0.12565626]
[1721179423156,0.17738174,66078.0,66075.0,0.12565626]
[1721179423354,0.001,66075.0,66074.0,0.012]
[1721179423559,0.15538174,66075.0,66074.0,0.13767275]
[1721179423758,0.15438174,66075.0,66074.0,0.12867275]
[1721179424056,0.25478174,66075.0,66074.0,0.12556778]
[1721179424484,0.40612474,66075.0,66074.0,0.12556778]
[1721179424796,0.25578174,66075.0,66074.0,0.12856778]
[1721179425243,0.40812474,66075.0,66074.0,0.13456778]
[1721179425442,0.71081074,66075.0,66074.0,0.12856778]
[1721179425692,0.40812474,66075.0,66074.0,0.12856778]
[1721179425911,0.40812474,66075.0,66074.0,0.12956778]
[1721179426143,0.25578174,66075.0,66074.0,0.12656778]
[1721179426370,0.25778174,66075.0,66074.0,0.12656778]
[1721179427055,0.25478174,66075.0,66074.0,0.12556778]
[1721179427518,0.40912474,66075.0,66066.0,0.1]
[1721179427757,0.48007474,66074.0,66067.0,0.00277097]
[1721179427998,0.48007474,66074.0,66065.0,0.00277097]
[1721179427999,0.302695,66073.0,66065.0,0.00277097]
[1721179428254,0.454098,66065.0,66064.0,0.00277097]
[1721179428499,0.151372,66062.0,66061.0,0.04958272]
[1721179428733,0.151383,66058.0,66047.0,0.0178266]
[1721179428939,0.151383,66058.0,66048.0,0.04922839]
[1721179428940,0.15438174,66057.0,66048.0,0.04922839]
[1721179429104,0.023,66056.0,66048.0,0.04922839]
[1721179429304,0.15438174,66055.0,66048.0,0.04922839]
[1721179429511,0.023,66054.0,66048.0,0.04922839]
[1721179429918,0.023,66054.0,66047.0,0.0178266]
[1721179430096,0.023,66054.0,66048.0,0.20638906]
[1721179430297,0.023,66054.0,66049.0,0.20638904]
[1721179430506,0.023,66054.0,66043.0,0.07994576]
[1721179430700,0.023,66054.0,66048.0,0.01783971]
[1721179431351,0.023,66054.0,66049.0,0.20640481]
[1721179431553,0.023,66054.0,66049.0,0.01783971]
[1721179431755,0.024,66054.0,66049.0,0.01783971]
[1721179432193,0.17838174,66054.0,66049.0,0.01783971]
[1721179432411,0.17838174,66054.0,66048.0,0.001]
[1721179432412,0.613707,66049.0,66048.0,0.001]
[1721179432620,1.42369874,66049.0,66048.0,0.001]
[1721179432824,1.39669874,66049.0,66048.0,0.001]
[1721179433020,0.32878374,66049.0,66048.0,0.001]
[1721179433353,0.151422,66041.0,66034.0,0.01784959]
[1721179433505,0.15438174,66040.0,66031.0,0.46304871]
[1721179433714,0.15438174,66040.0,66032.0,0.46304871]
[1721179433916,0.023,66039.0,66032.0,0.01785119]
[1721179434154,0.15438174,66038.0,66033.0,0.12574325]
[1721179434300,0.023,66037.0,66034.0,0.12574325]
[1721179434635,0.023,66037.0,66035.0,0.12574325]
[1721179434636,0.15438174,66036.0,66035.0,0.12574325]
[1721179434859,0.17738174,66036.0,66035.0,0.12574325]
[1721179435999,0.25938174,66036.0,66035.0,0.12574325]
[1721179436219,0.86611174,66036.0,66035.0,0.13174325]
[1721179436414,1.59550874,66036.0,66035.0,0.13174325]
[1721179436619,0.93977874,66036.0,66035.0,0.006]
[1721179437218,1.24264374,66036.0,66035.0,0.006]
[1721179437351,0.78027874,66036.0,66035.0,0.007]
[1721179437752,0.32598174,66036.0,66035.0,0.006]
[1721179437953,0.32698174,66036.0,66035.0,0.012]
[1721179438152,0.33698174,66036.0,66026.0,0.00277097]
[1721179438362,0.023,66035.0,66027.0,0.12575608]
[1721179438594,0.023,66035.0,66028.0,0.12575608]
[1721179438797,0.023,66035.0,66025.0,0.07717479]
[1721179438798,0.023,66035.0,66029.0,0.12575608]
[1721179439002,0.023,66035.0,66030.0,0.12852705]
[1721179439166,0.023,66035.0,66031.0,0.12575608]
[1721179439361,0.023,66035.0,66033.0,0.07717479]
[1721179439562,0.026,66035.0,66034.0,0.12852076]
[1721179439786,0.003,66035.0,66034.0,0.12574979]
[1721179440677,0.003,66035.0,66034.0,0.22574979]
[1721179440889,0.302788,66053.0,66034.0,0.22574979]
[1721179440890,0.004,66036.0,66034.0,0.51528679]
[1721179441059,0.004,66036.0,66035.0,0.12852076]
[1721179441257,0.0651,66055.0,66035.0,0.87718379]
[1721179441462,0.15438174,66054.0,66040.0,0.07717479]
[1721179441635,0.15438174,66054.0,66041.0,0.12574979]
[1721179441844,0.6137,66064.0,66047.0,0.07717479]
[1721179442042,0.63018174,66064.0,66054.0,0.07717479]
[1721179442245,0.63018174,66064.0,66055.0,0.1257039]
[1721179442246,0.15438174,66064.0,66055.0,0.1257039]
[1721179442450,0.15438174,66064.0,66056.0,0.1257039]
[1721179442653,0.15438174,66064.0,66053.0,0.0664]
[1721179442814,0.15438174,66064.0,66054.0,0.1256988]
[1721179443014,0.15438174,66064.0,66053.0,0.0664]
[1721179443015,0.15438174,66064.0,66055.0,0.1256988]
[1721179443253,0.15438174,66064.0,66056.0,0.1256988]
[1721179443486,0.15438174,66064.0,66050.0,0.04913894]
[1721179443487,0.15438174,66063.0,66050.0,0.04913894]
[1721179443689,0.007,66055.0,66051.0,0.1257002]
[1721179443888,0.007,66055.0,66052.0,0.2257002]
[1721179444095,0.007,66055.0,66053.0,0.1257002]
[1721179444290,0.007,66055.0,66054.0,0.12570154]
[1721179444520,0.15438174,66063.0,66052.0,0.1]
[1721179444720,0.023,66062.0,66052.0,0.1]
[1721179444902,0.023,66062.0,66049.0,0.1]
[1721179445052,0.023,66062.0,66050.0,0.12570015]
[1721179445249,0.023,66062.0,66051.0,0.22770015]
[1721179445507,0.023,66062.0,66052.0,0.1]
[1721179445810,0.023,66062.0,66049.0,0.1]
[1721179446029,0.03,66062.0,66052.0,0.001]
[1721179446834,0.007,66062.0,66052.0,0.201]
[1721179447097,0.017,66062.0,66052.0,0.352394]
[1721179447308,0.017,66062.0,66053.0,0.1256961]
[1721179447529,0.0627,66070.0,66055.0,0.151388]
[1721179447731,0.15438174,66069.0,66056.0,0.1]
[1721179447936,0.005,66062.0,66056.0,0.151384]
[1721179448139,0.004,66062.0,66057.0,0.22568868]
[1721179448321,0.005,66062.0,66057.0,0.12568868]
[1721179448491,0.001,66062.0,66058.0,0.22568553]
[1721179448696,0.15438174,66070.0,66058.0,0.1]
[1721179449012,0.033,66069.0,66058.0,0.1]
[1721179449389,0.023,66069.0,66058.0,0.1]
[1721179449591,0.15238174,66070.0,66055.0,0.14991574]
[1721179449810,0.16638174,66070.0,66056.0,0.12568601]
[1721179449970,0.16638174,66070.0,66057.0,0.22568601]
[1721179450170,0.15238174,66070.0,66057.0,0.1]
[1721179450424,0.15238174,66070.0,66058.0,0.12568761]
[1721179450634,0.15238174,66070.0,66059.0,0.1]
[1721179450835,0.001,66069.0,66057.0,0.1]
[1721179451138,0.15438174,66068.0,66059.0,0.00277097]
[1721179451282,0.001,66062.0,66059.0,0.10277097]
[1721179451485,0.15438174,66068.0,66060.0,0.1]
[1721179451688,0.15438174,66068.0,66057.0,0.1]
[1721179451689,0.001,66069.0,66058.0,0.00277097]
[1721179451887,0.0752,66072.0,66060.0,0.00277097]
[1721179452087,0.15438174,66071.0,66062.0,0.00277097]
[1721179452565,0.15438174,66071.0,66059.0,0.011]
[1721179452774,0.00084,66075.0,66061.0,0.07717479]
[1721179452950,0.00084,66075.0,66070.0,0.2]
[1721179453180,0.001,66072.0,66071.0,0.1]
[1721179453295,0.002,66070.0,66062.0,0.00277097]
[1721179453490,0.002,66070.0,66063.0,0.12566629]
[1721179453707,0.002,66070.0,66064.0,0.22843726]
[1721179453954,0.001,66072.0,66067.0,0.2]
[1721179454283,0.00084,66075.0,66070.0,0.002]
[1721179454452,0.00084,66075.0,66071.0,0.12565911]
[1721179454666,0.00084,66075.0,66069.0,0.00277097]
[1721179454874,0.15438174,66074.0,66060.0,0.0602]
[1721179455076,0.001,66070.0,66064.0,0.002]
[1721179455307,0.001,66070.0,66065.0,0.00277097]
[1721179455748,0.001,66070.0,66067.0,0.011]
[1721179455993,0.569677,66068.0,66067.0,0.011]
[1721179456163,1.48899474,66068.0,66067.0,0.011]
[1721179456364,1.59509474,66068.0,66067.0,0.011]
[1721179456754,1.89781274,66068.0,66067.0,0.011]
[1721179456946,0.302799,66051.0,66040.0,0.00277097]
[1721179457216,0.1487,66049.0,66040.0,0.00277097]
[1721179457515,0.1487,66049.0,66039.0,0.51216674]
[1721179457516,0.15438174,66048.0,66039.0,0.51216674]
[1721179457728,0.151408,66047.0,66039.0,0.04911803]
[1721179457932,0.17738174,66046.0,66039.0,0.04911803]
[1721179458059,0.17738174,66046.0,66040.0,0.006]
[1721179458478,0.17738174,66046.0,66040.0,0.002]
[1721179458891,0.001,66048.0,66040.0,0.002]
[1721179459096,0.15438174,66047.0,66040.0,0.002]
[1721179459339,0.151413,66045.0,66040.0,0.014]
[1721179459541,0.024,66046.0,66040.0,0.014]
[1721179459542,0.15438174,66044.0,66040.0,0.014]
[1721179459742,0.15438174,66044.0,66040.0,0.012]
[1721179459918,0.15438174,66044.0,66040.0,0.014]
[1721179460133,0.002,66046.0,66040.0,0.014]
[1721179460498,0.0787,66054.0,66044.0,0.07717479]
[1721179460621,0.7982,66068.0,66045.0,0.00277097]
[1721179460622,0.5395,66061.0,66045.0,0.00277097]
[1721179460832,0.001,66047.0,66045.0,0.25141]
[1721179461063,0.001,66047.0,66046.0,0.00277097]
[1721179461443,0.001,66047.0,66046.0,0.43426337]
[1721179461620,0.001,66047.0,66046.0,2.0314924]
[1721179461844,0.1424,66069.0,66052.0,0.2]
[1721179461845,0.001,66054.0,66052.0,0.2]
[1721179462128,0.001,66054.0,66053.0,0.1]
[1721179463081,0.1424,66069.0,66053.0,0.1]
[1721179463280,0.15438174,66068.0,66054.0,0.00277097]
[1721179463814,0.05,66062.0,66054.0,0.00277097]
[1721179464026,0.23155653,66061.0,66053.0,0.04985649]
[1721179464230,0.001,66054.0,66053.0,0.05185649]
[1721179464432,0.15538174,66054.0,66053.0,0.002]
[1721179464837,0.29548174,66054.0,66040.0,0.05235552]
[1721179465206,0.20438174,66053.0,66040.0,0.05235552]
[1721179465373,0.151397,66052.0,66040.0,0.04958455]
[1721179465586,0.17738174,66051.0,66040.0,0.04958455]
[1721179465950,0.1421,66054.0,66040.0,0.04958455]
[1721179466184,0.1421,66054.0,66041.0,0.00277097]
[1721179466185,0.15438174,66050.0,66041.0,0.00277097]
[1721179466403,0.15438174,66050.0,66040.0,0.04958455]
[1721179467109,0.15438174,66050.0,66041.0,0.000924]
[1721179467506,0.05,66048.0,66041.0,0.000924]
[1721179467753,0.15438174,66047.0,66041.0,0.000924]
[1721179467954,0.151412,66045.0,66041.0,0.000924]
[1721179468093,0.454255,66042.0,66041.0,0.000924]
[1721179468291,0.63163674,66042.0,66041.0,0.006924]
[1721179468732,0.32879974,66042.0,66041.0,0.000924]
[1721179468939,1.09397374,66042.0,66041.0,0.000924]
[1721179469142,1.44681074,66042.0,66041.0,0.000924]
[1721179469568,1.39681074,66042.0,66041.0,0.002924]
[1721179469775,0.79113674,66042.0,66041.0,0.002924]
[1721179470207,0.79113674,66042.0,66041.0,0.005924]
[1721179470373,0.79913674,66042.0,66041.0,0.000924]
[1721179470777,0.80513674,66042.0,66041.0,0.001924]
[1721179470979,1.15797374,66042.0,66041.0,0.000924]
[1721179471384,1.46681074,66042.0,66041.0,0.001924]
[1721179471605,1.45481074,66042.0,66041.0,0.000924]
[1721179471961,1.45781074,66042.0,66041.0,0.000924]
[1721179472718,0.18838174,66042.0,66041.0,0.000924]
[1721179472865,0.003,66042.0,66041.0,0.000924]
[1721179473408,0.009,66042.0,66041.0,0.000924]
[1721179473748,0.003,66042.0,66041.0,0.000924]
[1721179474165,0.002,66042.0,66041.0,0.000924]
[1721179474500,0.008,66042.0,66041.0,0.001924]
[1721179474708,0.75853674,66042.0,66041.0,0.001924]
[1721179474884,0.75853674,66042.0,66041.0,0.000924]
[1721179474885,1.08589041,66042.0,66041.0,0.000924]
[1721179475105,1.08589041,66042.0,66013.0,0.48090761]
[1721179475106,0.05,66023.0,66014.0,0.00277097]
[1721179475431,0.151467,66021.0,66016.0,0.04966936]
[1721179475624,0.15438174,66020.0,66016.0,0.04966936]
[1721179475824,0.15438174,66020.0,66007.0,0.2]
[1721179476026,0.15438174,66020.0,66008.0,0.12577788]
[1721179476270,0.15438174,66020.0,66008.0,0.5]
[1721179476677,0.15438174,66020.0,66009.0,0.00277097]
[1721179476822,0.15438174,66020.0,66013.0,0.07717479]
[1721179477018,0.15538174,66020.0,66016.0,0.005]
[1721179477219,0.001,66020.0,66016.0,0.005]
[1721179477452,0.001,66023.0,66014.0,0.003]
[1721179477659,0.151468,66021.0,66008.0,0.00277097]
[1721179477866,0.001,66020.0,66011.0,0.07717479]
[1721179478072,0.001,66020.0,66013.0,0.003]
[1721179478073,0.002,66020.0,66013.0,0.003]
[1721179478278,0.002,66020.0,66014.0,0.00664356]
[1721179478535,0.002,66020.0,66015.0,0.00277097]
[1721179478675,0.002,66020.0,66015.0,0.00664084]
[1721179478877,0.002,66020.0,66014.0,0.001]
[1721179479080,0.151462,66023.0,66015.0,0.00664084]
[1721179479282,0.15438174,66022.0,66015.0,0.00664084]
[1721179479484,0.15438174,66022.0,66014.0,0.003]
[1721179480006,0.302937,66021.0,66014.0,0.003]
[1721179480167,0.30584974,66021.0,66015.0,0.00664084]
[1721179480372,0.151471,66019.0,66014.0,0.003]
[1721179480577,0.26978174,66018.0,66008.0,0.1]
[1721179480868,0.151482,66015.0,66001.0,0.10277097]
[1721179481015,0.15438174,66014.0,66013.0,0.003]
[1721179481221,0.151492,66010.0,66001.0,0.1]